[Event "January 9 Early 2024"]
[Site "https://www.chess.com"]
[Date "2024.01.11"]
[Round "9"]
[White "Kopczynski, Michal"]
[Black "Wu, Derek"]
[Result "0-1"]
[Board "88"]
[TimeControl "180+1"]
[WhiteFideId "1124200"]
[BlackFideId "30914558"]
[WhiteElo "2530"]
[BlackElo "2668"]
[WhiteTeam "POL"]
[BlackTeam "USA"]
[WhiteClock "0:00:06"]
[BlackClock "0:01:04"]

1. e4 {[%clk 0:03:00]}  c5 {[%clk 0:03:00]} 2. d4 {[%clk 0:03:01]}  cxd4 {[%clk 0:02:59]} 3. c3 {[%clk 0:03:01]}  Nf6 {[%clk 0:03:00]} 4. Bd3 {[%clk 0:03:01]}  dxc3 {[%clk 0:02:59]} 5. Nxc3 {[%clk 0:03:02]}  d6 {[%clk 0:02:59]} 6. f4 {[%clk 0:03:02]}  Nc6 {[%clk 0:02:59]} 7. Nf3 {[%clk 0:03:03]}  Bg4 {[%clk 0:02:58]} 8. O-O {[%clk 0:03:03]}  e6 {[%clk 0:02:58]} 9. Kh1 {[%clk 0:03:04]}  Be7 {[%clk 0:02:58]} 10. Qe1 {[%clk 0:03:04]}  Qa5 {[%clk 0:02:53]} 11. Be3 {[%clk 0:02:57]}  d5 {[%clk 0:02:44]} 12. e5 {[%clk 0:02:56]}  Nd7 {[%clk 0:02:43]} 13. Bd2 {[%clk 0:02:44]}  Qb6 {[%clk 0:02:14]} 14. Qg3 {[%clk 0:02:41]}  Bxf3 {[%clk 0:02:13]} 15. Rxf3 {[%clk 0:02:38]}  Nc5 {[%clk 0:02:11]} 16. Qxg7 {[%clk 0:02:19]}  O-O-O {[%clk 0:02:11]} 17. Qxf7 {[%clk 0:01:46]}  Rdf8 {[%clk 0:02:05]} 18. Qg7 {[%clk 0:01:34]}  Qxb2 {[%clk 0:02:01]} 19. Rd1 {[%clk 0:01:20]}  Nxd3 {[%clk 0:01:55]} 20. Rxd3 {[%clk 0:01:20]}  Qc2 {[%clk 0:01:54]} 21. Be1 {[%clk 0:00:56]}  Rhg8 {[%clk 0:01:51]} 22. R3d2 {[%clk 0:00:39]}  Qxc3 {[%clk 0:01:44]} 23. Qxh7 {[%clk 0:00:31]}  Qc4 {[%clk 0:01:42]} 24. Bg3 {[%clk 0:00:28]}  Kb8 {[%clk 0:01:32]} 25. f5 {[%clk 0:00:28]}  Rxg3 {[%clk 0:01:19]} 26. hxg3 {[%clk 0:00:27]}  Rxf5 {[%clk 0:01:19]} 27. Qg8+ {[%clk 0:00:21]}  Nd8 {[%clk 0:01:17]} 28. g4 {[%clk 0:00:17]}  Rg5 {[%clk 0:01:15]} 29. Qh7 {[%clk 0:00:13]}  Qxg4 {[%clk 0:01:12]} 30. Qxe7 {[%clk 0:00:12]}  Qh4+ {[%clk 0:01:13]} 31. Kg1 {[%clk 0:00:12]}  Rxg2+ {[%clk 0:01:14]} 32. Rxg2 {[%clk 0:00:10]}  Qxe7 {[%clk 0:01:15]} 33. Rf1 {[%clk 0:00:09]}  Qc5+ {[%clk 0:01:12]} 34. Kh2 {[%clk 0:00:09]}  Qc3 {[%clk 0:01:11]} 35. Rg5 {[%clk 0:00:07]}  Qd2+ {[%clk 0:01:11]} 36. Rg2 {[%clk 0:00:07]}  Qh6+ {[%clk 0:01:11]} 37. Kg1 {[%clk 0:00:08]}  Qe3+ {[%clk 0:01:11]} 38. Kh1 {[%clk 0:00:08]}  Qxe5 {[%clk 0:01:12]} 39. Rg8 {[%clk 0:00:07]}  Kc7 {[%clk 0:01:07]} 40. Rff8 {[%clk 0:00:04]}  Qe4+ {[%clk 0:01:07]} 41. Kh2 {[%clk 0:00:04]}  Nc6 {[%clk 0:01:05]} 42. Rc8+ {[%clk 0:00:03]}  Kb6 {[%clk 0:01:05]} 43. Rce8 {[%clk 0:00:04]}  d4 {[%clk 0:01:05]} 44. Kg3 {[%clk 0:00:05]}  Qe3+ {[%clk 0:01:05]} 45. Kg4 {[%clk 0:00:05]}  Ne5+ {[%clk 0:01:05]} 46. Kh5 {[%clk 0:00:05]}  Qh3+ {[%clk 0:01:04]} 47. Kg5 {[%clk 0:00:05]}  Qf5+ {[%clk 0:01:04]} 48. Kh6 {[%clk 0:00:06]}  Ng4+ {[%clk 0:01:04]} 0-1

[Event "January 9 Early 2024"]
[Site "https://www.chess.com"]
[Date "2024.01.11"]
[Round "9"]
[White "Rozman, Levy"]
[Black "Begunov, Konstantin"]
[Result "1-0"]
[Board "89"]
[TimeControl "180+1"]
[WhiteFideId "2039877"]
[BlackFideId "4118510"]
[WhiteElo "2648"]
[BlackElo "2475"]
[WhiteTeam "USA"]
[BlackTeam "RUS"]
[WhiteClock "0:00:52"]
[BlackClock "0:00:03"]

1. d4 {[%clk 0:03:00]}  d5 {[%clk 0:02:58]} 2. Bg5 {[%clk 0:02:59]}  h6 {[%clk 0:02:57]} 3. Bh4 {[%clk 0:02:59]}  c6 {[%clk 0:02:58]} 4. Nc3 {[%clk 0:02:59]}  Bf5 {[%clk 0:02:57]} 5. f3 {[%clk 0:02:59]}  Qb6 {[%clk 0:02:53]} 6. Rb1 {[%clk 0:02:58]}  e6 {[%clk 0:02:46]} 7. e4 {[%clk 0:02:57]}  Bh7 {[%clk 0:02:46]} 8. Bf2 {[%clk 0:02:57]}  Nf6 {[%clk 0:02:35]} 9. Bd3 {[%clk 0:02:57]}  Nbd7 {[%clk 0:02:18]} 10. e5 {[%clk 0:02:53]}  Bxd3 {[%clk 0:02:12]} 11. Qxd3 {[%clk 0:02:54]}  Ng8 {[%clk 0:02:07]} 12. f4 {[%clk 0:02:48]}  c5 {[%clk 0:02:03]} 13. Nf3 {[%clk 0:02:48]}  Rc8 {[%clk 0:01:56]} 14. O-O {[%clk 0:02:46]}  g6 {[%clk 0:01:52]} 15. Kh1 {[%clk 0:02:36]}  a6 {[%clk 0:01:51]} 16. dxc5 {[%clk 0:02:33]}  Bxc5 {[%clk 0:01:36]} 17. Na4 {[%clk 0:02:32]}  Qc6 {[%clk 0:01:32]} 18. Nxc5 {[%clk 0:02:28]}  Nxc5 {[%clk 0:01:32]} 19. Qd1 {[%clk 0:02:07]}  Ne4 {[%clk 0:01:25]} 20. c3 {[%clk 0:02:04]}  Ne7 {[%clk 0:01:20]} 21. Nd4 {[%clk 0:02:03]}  Qc4 {[%clk 0:01:05]} 22. a3 {[%clk 0:01:50]}  Nc6 {[%clk 0:00:57]} 23. Nf3 {[%clk 0:01:44]}  Na5 {[%clk 0:00:45]} 24. Nd2 {[%clk 0:01:33]}  Nxd2 {[%clk 0:00:42]} 25. Qxd2 {[%clk 0:01:34]}  Nc6 {[%clk 0:00:40]} 26. b3 {[%clk 0:01:29]}  Qe4 {[%clk 0:00:37]} 27. Rbe1 {[%clk 0:01:28]}  Qf5 {[%clk 0:00:37]} 28. b4 {[%clk 0:01:21]}  Ne7 {[%clk 0:00:31]} 29. h3 {[%clk 0:01:16]}  O-O {[%clk 0:00:30]} 30. g4 {[%clk 0:01:14]}  Qe4+ {[%clk 0:00:15]} 31. Rxe4 {[%clk 0:01:12]}  dxe4 {[%clk 0:00:16]} 32. f5 {[%clk 0:01:10]}  g5 {[%clk 0:00:14]} 33. Bd4 {[%clk 0:01:03]}  Rfd8 {[%clk 0:00:09]} 34. h4 {[%clk 0:01:03]}  Nd5 {[%clk 0:00:06]} 35. fxe6 {[%clk 0:01:01]}  fxe6 {[%clk 0:00:05]} 36. Qe1 {[%clk 0:00:51]}  Nf4 {[%clk 0:00:05]} 37. Rxf4 {[%clk 0:00:51]}  gxf4 {[%clk 0:00:04]} 38. Qxe4 {[%clk 0:00:51]}  Rf8 {[%clk 0:00:01]} 39. Qg6+ {[%clk 0:00:51]}  Kh8 {[%clk 0:00:02]} 40. Qxh6+ {[%clk 0:00:52]}  Kg8 {[%clk 0:00:03]} 41. Qxe6+ {[%clk 0:00:53]}  Kh8 {[%clk 0:00:03]} 42. Qh6+ {[%clk 0:00:52]}  Kg8 {[%clk 0:00:03]} 43. e6 {[%clk 0:00:52]} 1-0

[Event "January 9 Early 2024"]
[Site "https://www.chess.com"]
[Date "2024.01.11"]
[Round "9"]
[White "Duda, Jan-Krzysztof"]
[Black "Iturrizaga Bonelli, Eduardo"]
[Result "1/2-1/2"]
[Board "91"]
[TimeControl "180+1"]
[WhiteFideId "1170546"]
[BlackFideId "3901211"]
[WhiteElo "3075"]
[BlackElo "3027"]
[WhiteTeam "POL"]
[BlackTeam "ESP"]
[WhiteClock "0:00:05"]
[BlackClock "0:00:27"]

1. e4 {[%clk 0:03:00]}  c5 {[%clk 0:03:00]} 2. Nf3 {[%clk 0:03:01]}  e6 {[%clk 0:02:57]} 3. d4 {[%clk 0:03:01]}  cxd4 {[%clk 0:02:57]} 4. Nxd4 {[%clk 0:03:02]}  a6 {[%clk 0:02:58]} 5. c4 {[%clk 0:03:01]}  Nf6 {[%clk 0:02:58]} 6. Nc3 {[%clk 0:03:01]}  Bb4 {[%clk 0:02:58]} 7. Qd3 {[%clk 0:02:47]}  d6 {[%clk 0:02:58]} 8. Nc2 {[%clk 0:02:40]}  Bxc3+ {[%clk 0:02:58]} 9. Qxc3 {[%clk 0:02:41]}  O-O {[%clk 0:02:58]} 10. f3 {[%clk 0:02:32]}  d5 {[%clk 0:02:49]} 11. e5 {[%clk 0:02:29]}  Nfd7 {[%clk 0:02:47]} 12. Bf4 {[%clk 0:02:21]}  dxc4 {[%clk 0:02:43]} 13. Bxc4 {[%clk 0:02:10]}  b5 {[%clk 0:02:43]} 14. Be2 {[%clk 0:02:03]}  Bb7 {[%clk 0:02:39]} 15. O-O {[%clk 0:02:02]}  Nb6 {[%clk 0:02:10]} 16. Ne3 {[%clk 0:02:01]}  N8d7 {[%clk 0:02:04]} 17. Qd4 {[%clk 0:01:55]}  Nd5 {[%clk 0:01:54]} 18. Nxd5 {[%clk 0:01:44]}  Bxd5 {[%clk 0:01:55]} 19. a4 {[%clk 0:01:41]}  bxa4 {[%clk 0:01:32]} 20. Rxa4 {[%clk 0:01:41]}  a5 {[%clk 0:01:31]} 21. Rc1 {[%clk 0:01:01]}  Qb8 {[%clk 0:01:23]} 22. Rca1 {[%clk 0:00:34]}  Qc7 {[%clk 0:01:07]} 23. Qc3 {[%clk 0:00:30]}  Qb8 {[%clk 0:00:50]} 24. Rxa5 {[%clk 0:00:26]}  Rxa5 {[%clk 0:00:51]} 25. Rxa5 {[%clk 0:00:26]}  Rc8 {[%clk 0:00:49]} 26. Qd2 {[%clk 0:00:24]}  h6 {[%clk 0:00:48]} 27. b4 {[%clk 0:00:21]}  Nxe5 {[%clk 0:00:48]} 28. b5 {[%clk 0:00:14]}  f6 {[%clk 0:00:44]} 29. Qe3 {[%clk 0:00:13]}  Bc4 {[%clk 0:00:33]} 30. Bxe5 {[%clk 0:00:09]}  fxe5 {[%clk 0:00:34]} 31. Bxc4 {[%clk 0:00:06]}  Rxc4 {[%clk 0:00:34]} 32. b6 {[%clk 0:00:06]}  Rb4 {[%clk 0:00:34]} 33. Rxe5 {[%clk 0:00:05]}  Rxb6 {[%clk 0:00:27]} 34. Rxe6 {[%clk 0:00:05]} 1/2-1/2

[Event "January 9 Early 2024"]
[Site "https://www.chess.com"]
[Date "2024.01.11"]
[Round "9"]
[White "Cardozo Munar, Carlos Eduardo"]
[Black "Mayaud, Raphael"]
[Result "0-1"]
[Board "92"]
[TimeControl "180+1"]
[WhiteFideId "4409477"]
[BlackFideId "627151"]
[WhiteElo "2214"]
[BlackElo "2301"]
[WhiteTeam "COL"]
[BlackTeam "FRA"]
[WhiteClock "0:00:02"]
[BlackClock "0:00:42"]

1. g3 {[%clk 0:02:49]}  d5 {[%clk 0:02:59]} 2. Bg2 {[%clk 0:02:50]}  c6 {[%clk 0:03:00]} 3. Nf3 {[%clk 0:02:49]}  Nf6 {[%clk 0:03:00]} 4. O-O {[%clk 0:02:49]}  Bf5 {[%clk 0:03:00]} 5. d3 {[%clk 0:02:41]}  e6 {[%clk 0:03:01]} 6. Nbd2 {[%clk 0:02:42]}  Be7 {[%clk 0:03:00]} 7. Re1 {[%clk 0:02:43]}  O-O {[%clk 0:03:00]} 8. c3 {[%clk 0:02:41]}  h6 {[%clk 0:02:59]} 9. e4 {[%clk 0:02:39]}  Bh7 {[%clk 0:02:57]} 10. e5 {[%clk 0:02:39]}  Nfd7 {[%clk 0:02:54]} 11. d4 {[%clk 0:02:39]}  c5 {[%clk 0:02:52]} 12. Nf1 {[%clk 0:02:39]}  Nc6 {[%clk 0:02:52]} 13. h4 {[%clk 0:02:39]}  Qb6 {[%clk 0:02:45]} 14. a3 {[%clk 0:02:38]}  cxd4 {[%clk 0:02:45]} 15. cxd4 {[%clk 0:02:37]}  Rac8 {[%clk 0:02:46]} 16. N1h2 {[%clk 0:02:33]}  Na5 {[%clk 0:02:44]} 17. Ng4 {[%clk 0:02:29]}  Bc2 {[%clk 0:02:43]} 18. Qe2 {[%clk 0:02:24]}  Nb3 {[%clk 0:02:42]} 19. Be3 {[%clk 0:01:53]}  Nxa1 {[%clk 0:02:39]} 20. Rxa1 {[%clk 0:01:54]}  Qxb2 {[%clk 0:02:38]} 21. Rc1 {[%clk 0:01:48]}  Bxa3 {[%clk 0:02:35]} 22. Nxh6+ {[%clk 0:01:08]}  gxh6 {[%clk 0:02:34]} 23. Bxh6 {[%clk 0:01:08]}  Bg6 {[%clk 0:02:25]} 24. Qe3 {[%clk 0:00:45]}  Rxc1+ {[%clk 0:02:24]} 25. Kh2 {[%clk 0:00:44]}  Rc2 {[%clk 0:01:51]} 26. h5 {[%clk 0:00:42]}  Rxf2 {[%clk 0:01:40]} 27. Nh4 {[%clk 0:00:42]}  Rxg2+ {[%clk 0:01:32]} 28. Nxg2 {[%clk 0:00:40]}  Qc2 {[%clk 0:01:15]} 29. g4 {[%clk 0:00:32]}  Rc8 {[%clk 0:01:08]} 30. hxg6 {[%clk 0:00:20]}  Qxg6 {[%clk 0:01:06]} 31. Kg3 {[%clk 0:00:13]}  Bc1 {[%clk 0:01:04]} 32. Qf3 {[%clk 0:00:06]}  Bxh6 {[%clk 0:01:03]} 33. Nh4 {[%clk 0:00:06]}  Qe4 {[%clk 0:00:51]} 34. Qa3 {[%clk 0:00:06]}  Bf8 {[%clk 0:00:45]} 35. Qxa7 {[%clk 0:00:04]}  Rc3+ {[%clk 0:00:45]} 36. Kf2 {[%clk 0:00:02]}  Qc2+ {[%clk 0:00:44]} 37. Ke1 {[%clk 0:00:02]}  Qc1+ {[%clk 0:00:42]} 38. Ke2 {[%clk 0:00:03]}  Qb2+ {[%clk 0:00:42]} 39. Kd1 {[%clk 0:00:02]}  Rc1# {[%clk 0:00:42]} 0-1

[Event "January 9 Early 2024"]
[Site "https://www.chess.com"]
[Date "2024.01.11"]
[Round "9"]
[White "Mekhitarian, Krikor Sevag"]
[Black "Mrithyunjay Mahadevan"]
[Result "0-1"]
[Board "93"]
[TimeControl "180+1"]
[WhiteFideId "2107660"]
[BlackFideId "45003521"]
[WhiteElo "2713"]
[BlackElo "2475"]
[WhiteTeam "BRA"]
[BlackTeam "IND"]
[WhiteClock "0:00:02"]
[BlackClock "0:00:32"]

1. Nf3 {[%clk 0:03:00]}  g6 {[%clk 0:02:56]} 2. c4 {[%clk 0:03:00]}  Bg7 {[%clk 0:02:56]} 3. e4 {[%clk 0:03:00]}  e5 {[%clk 0:02:52]} 4. d4 {[%clk 0:02:59]}  exd4 {[%clk 0:02:51]} 5. Nxd4 {[%clk 0:03:00]}  Nc6 {[%clk 0:02:51]} 6. Be3 {[%clk 0:02:58]}  Nge7 {[%clk 0:02:51]} 7. Nc3 {[%clk 0:02:57]}  O-O {[%clk 0:02:51]} 8. Be2 {[%clk 0:02:50]}  a6 {[%clk 0:02:41]} 9. O-O {[%clk 0:02:49]}  d6 {[%clk 0:02:40]} 10. Qd2 {[%clk 0:02:47]}  Be6 {[%clk 0:02:27]} 11. Rad1 {[%clk 0:02:44]}  Nxd4 {[%clk 0:02:16]} 12. Bxd4 {[%clk 0:02:44]}  Nc6 {[%clk 0:02:16]} 13. Bxg7 {[%clk 0:02:42]}  Kxg7 {[%clk 0:02:17]} 14. f4 {[%clk 0:02:42]}  f5 {[%clk 0:02:17]} 15. b3 {[%clk 0:02:38]}  h6 {[%clk 0:02:14]} 16. Bf3 {[%clk 0:02:34]}  fxe4 {[%clk 0:02:05]} 17. Nxe4 {[%clk 0:02:32]}  Qe7 {[%clk 0:02:00]} 18. Rfe1 {[%clk 0:02:30]}  Qf7 {[%clk 0:01:56]} 19. g3 {[%clk 0:01:56]}  Rae8 {[%clk 0:01:48]} 20. Bg2 {[%clk 0:01:53]}  Kh7 {[%clk 0:01:39]} 21. Re3 {[%clk 0:01:17]}  Bf5 {[%clk 0:01:31]} 22. Rde1 {[%clk 0:01:17]}  Bxe4 {[%clk 0:01:31]} 23. Bxe4 {[%clk 0:01:16]}  Nd8 {[%clk 0:01:28]} 24. Qd3 {[%clk 0:01:14]}  Re6 {[%clk 0:01:05]} 25. h4 {[%clk 0:00:41]}  h5 {[%clk 0:01:01]} 26. f5 {[%clk 0:00:17]}  gxf5 {[%clk 0:00:59]} 27. Rf3 {[%clk 0:00:17]}  Qg6 {[%clk 0:00:47]} 28. Rxf5 {[%clk 0:00:03]}  Rxe4 {[%clk 0:00:44]} 29. Rxe4 {[%clk 0:00:02]}  Rxf5 {[%clk 0:00:39]} 30. Qe2 {[%clk 0:00:01]}  Qxg3+ {[%clk 0:00:36]} 31. Qg2 {[%clk 0:00:01]}  Qxg2+ {[%clk 0:00:33]} 32. Kxg2 {[%clk 0:00:02]}  Re5 {[%clk 0:00:32]} 0-1

[Event "January 9 Early 2024"]
[Site "https://www.chess.com"]
[Date "2024.01.11"]
[Round "9"]
[White "Tasev, Dejan"]
[Black "Szyszylo, Rafal"]
[Result "1-0"]
[Board "94"]
[TimeControl "180+1"]
[WhiteFideId "936618"]
[BlackFideId "1109626"]
[WhiteElo "2639"]
[BlackElo "2389"]
[WhiteTeam "SRB"]
[BlackTeam "POL"]
[WhiteClock "0:00:40"]
[BlackClock "0:00:01"]

1. e4 {[%clk 0:03:00]}  d6 {[%clk 0:02:59]} 2. d4 {[%clk 0:03:00]}  Nf6 {[%clk 0:02:59]} 3. Nc3 {[%clk 0:03:01]}  g6 {[%clk 0:03:00]} 4. f3 {[%clk 0:03:01]}  c6 {[%clk 0:02:59]} 5. Be3 {[%clk 0:03:02]}  Nbd7 {[%clk 0:02:59]} 6. Qd2 {[%clk 0:03:02]}  b5 {[%clk 0:02:59]} 7. a3 {[%clk 0:03:01]}  Nb6 {[%clk 0:02:58]} 8. h4 {[%clk 0:03:01]}  h5 {[%clk 0:02:58]} 9. Nh3 {[%clk 0:03:01]}  Bxh3 {[%clk 0:02:56]} 10. Rxh3 {[%clk 0:03:00]}  Bg7 {[%clk 0:02:56]} 11. d5 {[%clk 0:02:53]}  Nc4 {[%clk 0:02:21]} 12. Bxc4 {[%clk 0:02:51]}  bxc4 {[%clk 0:02:22]} 13. dxc6 {[%clk 0:02:49]}  Qc7 {[%clk 0:02:13]} 14. Bd4 {[%clk 0:02:15]}  e5 {[%clk 0:02:11]} 15. Be3 {[%clk 0:02:11]}  Qxc6 {[%clk 0:02:11]} 16. O-O-O {[%clk 0:02:11]}  Rd8 {[%clk 0:01:54]} 17. Nd5 {[%clk 0:02:02]}  Nxd5 {[%clk 0:01:40]} 18. Qxd5 {[%clk 0:02:01]}  Qc7 {[%clk 0:01:16]} 19. Qb5+ {[%clk 0:01:50]}  Rd7 {[%clk 0:01:15]} 20. Rd5 {[%clk 0:01:43]}  Ke7 {[%clk 0:01:14]} 21. Rh1 {[%clk 0:01:40]}  c3 {[%clk 0:01:05]} 22. b3 {[%clk 0:01:37]}  Rb8 {[%clk 0:00:27]} 23. Qa4 {[%clk 0:01:32]}  Ke6 {[%clk 0:00:21]} 24. Rhd1 {[%clk 0:01:30]}  Bf8 {[%clk 0:00:20]} 25. g3 {[%clk 0:01:25]}  Rb7 {[%clk 0:00:15]} 26. f4 {[%clk 0:01:22]}  f6 {[%clk 0:00:15]} 27. f5+ {[%clk 0:01:19]}  gxf5 {[%clk 0:00:14]} 28. exf5+ {[%clk 0:01:20]}  Kf7 {[%clk 0:00:15]} 29. g4 {[%clk 0:01:18]}  hxg4 {[%clk 0:00:10]} 30. Qxg4 {[%clk 0:01:18]}  Ke8 {[%clk 0:00:09]} 31. Qg6+ {[%clk 0:01:15]}  Rf7 {[%clk 0:00:07]} 32. h5 {[%clk 0:01:13]}  Kd8 {[%clk 0:00:07]} 33. h6 {[%clk 0:01:13]}  Kc8 {[%clk 0:00:05]} 34. Qg8 {[%clk 0:01:10]}  Qd8 {[%clk 0:00:04]} 35. Kb1 {[%clk 0:00:53]}  Rbd7 {[%clk 0:00:03]} 36. Qg1 {[%clk 0:00:49]}  Be7 {[%clk 0:00:03]} 37. Qf1 {[%clk 0:00:48]}  Kb8 {[%clk 0:00:02]} 38. Qa6 {[%clk 0:00:47]}  Rb7 {[%clk 0:00:02]} 39. Rb5 {[%clk 0:00:40]}  Qd7 {[%clk 0:00:01]} 40. Rdd5 {[%clk 0:00:40]} 1-0

[Event "January 9 Early 2024"]
[Site "https://www.chess.com"]
[Date "2024.01.11"]
[Round "9"]
[White "Boyer, Mahel"]
[Black "Bacrot, Etienne"]
[Result "0-1"]
[Board "95"]
[TimeControl "180+1"]
[WhiteFideId "45102422"]
[BlackFideId "605506"]
[WhiteElo "2662"]
[BlackElo "2848"]
[WhiteTeam "FRA"]
[BlackTeam "FRA"]
[WhiteClock "0:00:02"]
[BlackClock "0:00:11"]

1. e4 {[%clk 0:02:53]}  e6 {[%clk 0:02:58]} 2. c4 {[%clk 0:02:53]}  d5 {[%clk 0:02:56]} 3. cxd5 {[%clk 0:02:53]}  exd5 {[%clk 0:02:56]} 4. exd5 {[%clk 0:02:54]}  Nf6 {[%clk 0:02:56]} 5. Nf3 {[%clk 0:02:52]}  Nxd5 {[%clk 0:02:53]} 6. Nc3 {[%clk 0:02:52]}  Be7 {[%clk 0:02:51]} 7. d4 {[%clk 0:02:51]}  O-O {[%clk 0:02:44]} 8. Bd3 {[%clk 0:02:52]}  Nxc3 {[%clk 0:02:39]} 9. bxc3 {[%clk 0:02:52]}  h6 {[%clk 0:02:36]} 10. O-O {[%clk 0:02:48]}  Nd7 {[%clk 0:02:36]} 11. Rb1 {[%clk 0:02:44]}  Nf6 {[%clk 0:02:36]} 12. Ne5 {[%clk 0:02:44]}  Bd6 {[%clk 0:02:36]} 13. Qf3 {[%clk 0:02:43]}  Be6 {[%clk 0:02:32]} 14. c4 {[%clk 0:02:39]}  Rb8 {[%clk 0:02:12]} 15. Re1 {[%clk 0:02:03]}  Nd7 {[%clk 0:01:47]} 16. Nxd7 {[%clk 0:01:01]}  Bxd7 {[%clk 0:01:39]} 17. Rxb7 {[%clk 0:00:57]}  Rxb7 {[%clk 0:01:22]} 18. Qxb7 {[%clk 0:00:56]}  Qh4 {[%clk 0:01:22]} 19. h3 {[%clk 0:00:24]}  Qxd4 {[%clk 0:01:20]} 20. Rd1 {[%clk 0:00:16]}  Qe5 {[%clk 0:01:10]} 21. g3 {[%clk 0:00:04]}  Bxh3 {[%clk 0:01:08]} 22. Bf4 {[%clk 0:00:04]}  Qf6 {[%clk 0:01:06]} 23. Bxd6 {[%clk 0:00:05]}  cxd6 {[%clk 0:01:05]} 24. Be4 {[%clk 0:00:03]}  Re8 {[%clk 0:00:56]} 25. Qxa7 {[%clk 0:00:04]}  Bg4 {[%clk 0:00:45]} 26. Rd4 {[%clk 0:00:03]}  Bf3 {[%clk 0:00:30]} 27. Qd7 {[%clk 0:00:03]}  Rb8 {[%clk 0:00:15]} 28. Bxf3 {[%clk 0:00:02]}  Qxd4 {[%clk 0:00:13]} 29. Bd5 {[%clk 0:00:02]}  Qf6 {[%clk 0:00:11]} 0-1

[Event "January 9 Early 2024"]
[Site "https://www.chess.com"]
[Date "2024.01.11"]
[Round "9"]
[White "Bueno, Alfeu Junior Varela"]
[Black "Bodnaruk, Anastasia"]
[Result "0-1"]
[Board "96"]
[TimeControl "180+1"]
[WhiteFideId "2108879"]
[BlackFideId "4181751"]
[WhiteElo "2412"]
[BlackElo "2557"]
[WhiteTeam "BRA"]
[BlackTeam "RUS"]
[WhiteClock "0:00:02"]
[BlackClock "0:00:05"]

1. e4 {[%clk 0:02:50]}  c5 {[%clk 0:02:59]} 2. Nc3 {[%clk 0:02:50]}  d6 {[%clk 0:02:58]} 3. f4 {[%clk 0:02:50]}  g6 {[%clk 0:02:56]} 4. Nf3 {[%clk 0:02:51]}  Bg7 {[%clk 0:02:57]} 5. Bb5+ {[%clk 0:02:51]}  Bd7 {[%clk 0:02:57]} 6. O-O {[%clk 0:02:51]}  Bxb5 {[%clk 0:02:53]} 7. Nxb5 {[%clk 0:02:51]}  Nc6 {[%clk 0:02:49]} 8. d3 {[%clk 0:02:50]}  Nf6 {[%clk 0:02:43]} 9. Nc3 {[%clk 0:02:50]}  O-O {[%clk 0:02:42]} 10. Qe1 {[%clk 0:02:50]}  Nd4 {[%clk 0:02:25]} 11. Qh4 {[%clk 0:02:50]}  Nxc2 {[%clk 0:02:21]} 12. Rb1 {[%clk 0:02:51]}  h5 {[%clk 0:02:14]} 13. f5 {[%clk 0:02:50]}  Nd4 {[%clk 0:01:53]} 14. Qg3 {[%clk 0:02:25]}  Qe8 {[%clk 0:01:15]} 15. Nh4 {[%clk 0:02:15]}  Kh7 {[%clk 0:01:09]} 16. Qg5 {[%clk 0:01:40]}  e6 {[%clk 0:00:52]} 17. Bd2 {[%clk 0:01:12]}  Ng4 {[%clk 0:00:47]} 18. Nf3 {[%clk 0:00:22]}  Qd8 {[%clk 0:00:12]} 19. h3 {[%clk 0:00:11]}  Nxf3+ {[%clk 0:00:11]} 20. Rxf3 {[%clk 0:00:11]}  Qxg5 {[%clk 0:00:11]} 21. Bxg5 {[%clk 0:00:11]}  Ne5 {[%clk 0:00:12]} 22. Re3 {[%clk 0:00:04]}  Bh6 {[%clk 0:00:11]} 23. Bxh6 {[%clk 0:00:03]}  Kxh6 {[%clk 0:00:11]} 24. Rf1 {[%clk 0:00:03]}  a6 {[%clk 0:00:09]} 25. Ne2 {[%clk 0:00:02]}  Rae8 {[%clk 0:00:05]} 0-1

[Event "January 9 Early 2024"]
[Site "https://www.chess.com"]
[Date "2024.01.11"]
[Round "9"]
[White "Stojanovski, Sandi"]
[Black "Krzywda, Andrzej"]
[Result "1-0"]
[Board "98"]
[TimeControl "180+1"]
[WhiteFideId "1403249"]
[BlackFideId "1114565"]
[WhiteElo "2555"]
[BlackElo "2395"]
[WhiteTeam "DEN"]
[BlackTeam "POL"]
[WhiteClock "0:00:18"]
[BlackClock "0:00:18"]

1. d3 {[%clk 0:03:00]}  d5 {[%clk 0:02:55]} 2. Nf3 {[%clk 0:03:01]}  Nf6 {[%clk 0:02:50]} 3. g3 {[%clk 0:03:01]}  g6 {[%clk 0:02:45]} 4. Bg2 {[%clk 0:03:02]}  Bg7 {[%clk 0:02:45]} 5. O-O {[%clk 0:03:02]}  O-O {[%clk 0:02:46]} 6. c4 {[%clk 0:03:03]}  d4 {[%clk 0:02:42]} 7. b4 {[%clk 0:03:02]}  a5 {[%clk 0:02:42]} 8. b5 {[%clk 0:03:02]}  Nfd7 {[%clk 0:02:40]} 9. a4 {[%clk 0:03:02]}  Nc5 {[%clk 0:02:39]} 10. Ba3 {[%clk 0:03:01]}  Nbd7 {[%clk 0:02:37]} 11. Ra2 {[%clk 0:02:59]}  e5 {[%clk 0:02:36]} 12. Re1 {[%clk 0:02:56]}  Re8 {[%clk 0:02:36]} 13. Nfd2 {[%clk 0:02:49]}  Bf8 {[%clk 0:02:33]} 14. e3 {[%clk 0:02:17]}  Nxd3 {[%clk 0:02:28]} 15. Bxf8 {[%clk 0:01:55]}  Nxe1 {[%clk 0:02:25]} 16. Qxe1 {[%clk 0:01:45]}  Nxf8 {[%clk 0:02:19]} 17. Ne4 {[%clk 0:01:40]}  Bf5 {[%clk 0:02:14]} 18. Nbd2 {[%clk 0:01:38]}  d3 {[%clk 0:02:06]} 19. h4 {[%clk 0:01:37]}  Qe7 {[%clk 0:01:55]} 20. h5 {[%clk 0:01:34]}  Rad8 {[%clk 0:01:54]} 21. h6 {[%clk 0:01:31]}  Bxe4 {[%clk 0:01:46]} 22. Nxe4 {[%clk 0:01:29]}  f5 {[%clk 0:01:45]} 23. Nc3 {[%clk 0:01:28]}  e4 {[%clk 0:01:44]} 24. Nd5 {[%clk 0:01:20]}  Rxd5 {[%clk 0:01:27]} 25. cxd5 {[%clk 0:01:19]}  b6 {[%clk 0:01:26]} 26. Qc3 {[%clk 0:01:14]}  Rd8 {[%clk 0:01:13]} 27. f3 {[%clk 0:01:11]}  Rxd5 {[%clk 0:00:53]} 28. fxe4 {[%clk 0:01:11]}  fxe4 {[%clk 0:00:54]} 29. Bxe4 {[%clk 0:01:11]}  Re5 {[%clk 0:00:54]} 30. Bxd3 {[%clk 0:01:02]}  Rxe3 {[%clk 0:00:53]} 31. Bc4+ {[%clk 0:00:59]}  Re6 {[%clk 0:00:45]} 32. Re2 {[%clk 0:00:38]}  Kf7 {[%clk 0:00:29]} 33. Qg7+ {[%clk 0:00:29]}  Ke8 {[%clk 0:00:29]} 34. Bxe6 {[%clk 0:00:26]}  Nxe6 {[%clk 0:00:25]} 35. Qh8+ {[%clk 0:00:21]}  Kd7 {[%clk 0:00:25]} 36. Rd2+ {[%clk 0:00:20]}  Nd4 {[%clk 0:00:19]} 37. Rxd4+ {[%clk 0:00:19]}  Ke6 {[%clk 0:00:18]} 38. Re4+ {[%clk 0:00:18]} 1-0